bitfinex/quotes_BTCUSD_20251201
["timestamp","ask_amount","ask_price","bid_price","bid_amount"]
[1764608351898,0.323,84665.0,84664.0,0.16250263]
[1764608352101,0.323,84665.0,84664.0,0.39873054]
[1764608352578,2.0,84679.0,84674.0,0.23619872]
[1764608352802,2.0,84689.0,84683.0,0.23617471]
[1764608353020,2.0,84683.0,84681.0,0.01180902]
[1764608353236,0.323,84683.0,84680.0,0.11086916]
[1764608353442,0.323,84683.0,84682.0,0.06118]
[1764608353833,1.13105642,84690.0,84682.0,0.06118]
[1764608353834,0.01852634,84690.0,84687.0,0.24797187]
[1764608354003,2.0,84689.0,84685.0,0.07298846]
[1764608354203,2.0,84689.0,84685.0,0.30915683]
[1764608354416,0.01852634,84690.0,84685.0,0.30915683]
[1764608354417,2.323,84688.0,84687.0,0.23616375]
[1764608354957,0.323,84688.0,84687.0,0.29834375]
[1764608355160,2.323,84688.0,84687.0,0.39740375]
[1764608355363,2.323,84688.0,84687.0,0.39640375]
[1764608355594,2.0,84698.0,84693.0,0.24795343]
[1764608355762,2.0,84696.0,84692.0,0.01180749]
[1764608355961,0.323,84693.0,84690.0,0.24796237]
[1764608356167,2.0,84696.0,84689.0,0.0118079]
[1764608356367,2.0,84696.0,84689.0,0.24796536]
[1764608356569,0.323,84689.0,84687.0,0.002]
[1764608357620,0.24796145,84691.0,84683.0,0.01180874]
[1764608357800,0.03068,84688.0,84682.0,0.01180888]
[1764608358117,0.03068,84688.0,84683.0,0.01180874]
[1764608358318,0.03068,84688.0,84680.0,0.01884]
[1764608358639,0.323,84683.0,84680.0,0.03064916]
[1764608358782,0.323,84683.0,84680.0,0.26683205]
[1764608359335,0.323,84683.0,84680.0,0.09990938]
[1764608359522,0.323,84683.0,84680.0,0.11171854]
[1764608359733,0.323,84683.0,84680.0,0.09990938]
[1764608360647,0.323,84683.0,84680.0,0.08206938]
[1764608362351,0.323,84683.0,84680.0,0.001]
[1764608363277,0.01852549,84691.0,84684.0,0.24797812]
[1764608363480,0.01852549,84691.0,84684.0,0.09906]
[1764608363481,0.323,84687.0,84684.0,0.09906]
[1764608363682,0.323,84685.0,84684.0,0.04310139]
[1764608364498,0.323,84685.0,84684.0,0.10822139]
[1764608364739,0.323,84689.0,84684.0,0.20608139]
[1764608364942,0.323,84685.0,84684.0,0.34539314]
[1764608365154,0.323,84685.0,84684.0,0.10922139]
[1764608365661,0.323,84685.0,84684.0,0.10822139]
[1764608366083,2.23616157,84688.0,84684.0,0.10822139]
[1764608366277,0.323,84685.0,84684.0,0.10822139]
[1764608366476,0.323,84687.0,84684.0,0.10822139]
[1764608366721,0.323,84685.0,84684.0,0.10822139]
[1764608366846,0.323,84685.0,84679.0,0.04787]
[1764608367059,0.323,84683.0,84679.0,0.04787]
[1764608367887,0.323,84683.0,84682.0,0.06512]
[1764608368089,0.323,84687.0,84682.0,0.06512]
[1764608368317,0.323,84685.0,84683.0,0.09686]
[1764608368521,0.323,84685.0,84682.0,0.06512]
[1764608368868,0.323,84685.0,84679.0,0.0596793]
[1764608369248,0.323,84685.0,84680.0,0.01180916]
[1764608369453,0.323,84685.0,84679.0,0.29586535]
[1764608369785,0.323,84685.0,84680.0,0.01180916]
[1764608370234,0.323,84685.0,84679.0,0.29586516]
[1764608370439,0.323,84684.0,84679.0,0.0118093]
[1764608370665,0.323,84684.0,84680.0,0.01180916]
[1764608370869,0.323,84684.0,84681.0,0.01180902]
[1764608371074,0.323,84684.0,84680.0,0.24799216]
[1764608371075,0.323,84684.0,84682.0,0.07676074]
[1764608371486,0.35368,84687.0,84682.0,0.07676074]
[1764608371819,0.323,84685.0,84682.0,0.07676074]
[1764608372018,0.323,84685.0,84680.0,0.01180916]
[1764608372225,0.323,84685.0,84680.0,0.001]
[1764608372423,0.323,84685.0,84679.0,0.0118093]
[1764608372799,0.60165381,84687.0,84679.0,0.0118093]
[1764608373145,0.323,84685.0,84677.0,0.01180958]
[1764608373378,0.323,84685.0,84675.0,0.01180986]
[1764608373379,0.323,84679.0,84675.0,0.01180986]
[1764608373576,0.323,84679.0,84675.0,0.24800682]
[1764608373807,0.323,84679.0,84676.0,0.01180972]
[1764608374017,0.323,84679.0,84671.0,0.34696829]
[1764608374458,0.323,84679.0,84672.0,0.01181027]
[1764608374666,0.323,84679.0,84675.0,0.002]
[1764608374891,0.323,84679.0,84671.0,0.11076]
[1764608375078,0.323,84679.0,84672.0,0.01181027]
[1764608375212,0.323,84679.0,84671.0,0.12457041]
[1764608375419,0.323,84679.0,84672.0,0.01181027]
[1764608375623,0.3348093,84679.0,84671.0,0.35877797]
[1764608375846,0.01180944,84678.0,84671.0,0.11076]
[1764608376179,0.5591875,84679.0,84671.0,0.11076]
[1764608377029,0.3348093,84679.0,84671.0,0.11076]
[1764608377477,0.3348093,84679.0,84671.0,0.12257041]
[1764608377676,0.323,84679.0,84671.0,0.01884]
[1764608377795,0.55918751,84679.0,84671.0,0.01884]
[1764608378199,0.01180972,84676.0,84671.0,0.01884]
[1764608378417,0.323,84675.0,84671.0,0.01884]
[1764608378613,0.323,84671.0,84664.0,0.00026263]
[1764608378837,0.323,84671.0,84664.0,0.01207402]
[1764608379033,0.323,84671.0,84664.0,0.00026263]
[1764608379467,0.03784,84670.0,84664.0,0.00026263]
[1764608380243,0.04965055,84670.0,84664.0,0.00026263]
[1764608380450,0.323,84669.0,84664.0,0.00026263]
[1764608380990,0.323,84669.0,84664.0,0.00126263]
[1764608381412,0.03784,84670.0,84664.0,0.00126263]
[1764608381413,0.03784,84670.0,84665.0,0.24803405]
[1764608381699,0.03784,84670.0,84666.0,0.01181111]
[1764608381700,0.323,84670.0,84666.0,0.01181111]
[1764608382071,0.323,84670.0,84666.0,0.10373111]
[1764608382274,0.323,84670.0,84667.0,0.01181097]
[1764608382469,0.323,84670.0,84666.0,0.33995195]
[1764608382789,0.323,84670.0,84669.0,0.31450264]
[1764608382992,0.323,84670.0,84669.0,0.1584]
[1764608383367,0.323,84670.0,84669.0,0.06648]
[1764608383721,0.01852752,84672.0,84669.0,0.06648]
[1764608384013,0.323,84670.0,84669.0,0.1594]
[1764608385012,0.323,84670.0,84669.0,0.001]
[1764608385651,0.323,84670.0,84669.0,0.39561396]
[1764608385859,0.323,84670.0,84669.0,0.4306952]
[1764608386036,0.323,84676.0,84671.0,0.01181041]
[1764608386253,0.323,84676.0,84670.0,0.32813068]
[1764608386603,0.323,84676.0,84675.0,0.04991]
[1764608387131,0.11104617,84679.0,84675.0,0.04991]
[1764608387132,0.323,84678.0,84675.0,0.04991]
[1764608387335,0.323,84676.0,84675.0,0.04991]
[1764608388869,0.323,84676.0,84675.0,0.11639]
[1764608389439,0.11104617,84679.0,84675.0,0.11639]
[1764608389440,0.323,84678.0,84675.0,0.11639]
[1764608389645,0.11104617,84679.0,84675.0,0.11639]
[1764608389646,0.323,84676.0,84675.0,0.11639]
[1764608389843,0.323,84676.0,84675.0,0.35258722]
[1764608390066,0.323,84676.0,84675.0,0.44450722]
[1764608390267,0.323,84676.0,84675.0,0.54074148]
[1764608390563,0.323,84676.0,84675.0,0.44550722]
[1764608390788,0.323,84689.0,84688.0,0.23616096]
[1764608391012,0.323,84689.0,84686.0,0.01180832]
[1764608391013,2.323,84688.0,84687.0,0.23616375]
[1764608391228,0.34850368,84688.0,84687.0,0.28273375]
[1764608391454,0.34850368,84688.0,84687.0,0.34921375]
[1764608392523,0.34850368,84688.0,84687.0,0.44113375]
[1764608392684,0.323,84688.0,84687.0,0.44113375]
[1764608392891,0.001,84689.0,84688.0,0.247641]
[1764608393111,0.70666543,84700.0,84688.0,0.247641]
[1764608393112,2.02550176,84699.0,84698.0,0.23613239]
[1764608393447,0.00011706,84699.0,84698.0,0.39353239]
[1764608393635,0.00011706,84699.0,84698.0,0.50875835]
[1764608393853,0.00011706,84699.0,84698.0,0.39353239]
[1764608394021,0.00011706,84699.0,84698.0,0.40501243]
[1764608394420,0.00011706,84699.0,84698.0,0.39353239]
[1764608395410,0.00011706,84699.0,84698.0,0.40501243]
[1764608396021,0.00011706,84699.0,84698.0,0.40901243]
[1764608396222,0.00011706,84699.0,84698.0,0.40501243]
[1764608396544,0.00011706,84699.0,84698.0,0.52223839]
[1764608399416,0.00011706,84699.0,84698.0,0.51075835]
[1764608399726,0.00011706,84699.0,84698.0,0.52223839]
[1764608400177,0.01852742,84723.0,84698.0,0.52223839]
[1764608400178,0.5,84738.0,84720.0,0.01180358]
[1764608400444,0.5,84738.0,84734.0,0.23603256]
[1764608400445,2.0,84737.0,84734.0,0.23603256]
[1764608400635,2.0,84737.0,84731.0,0.01180205]
[1764608400774,2.0,84737.0,84736.0,0.04874]
[1764608400976,2.0,84737.0,84736.0,0.11294]
[1764608401360,9.673e-05,84738.0,84737.0,0.2360244]
[1764608401540,0.5004,84780.0,84769.0,0.2359353]
[1764608401740,0.00078997,84770.0,84769.0,0.16228738]
[1764608401975,0.01179773,84762.0,84758.0,0.0188]
[1764608402098,0.01179732,84765.0,84744.0,0.04874]
[1764608402099,2.0,84757.0,84744.0,0.04874]
[1764608402304,0.00049,84768.0,84744.0,0.04874]
[1764608402305,2.0117969,84768.0,84745.0,0.0188]
[1764608402536,0.67364489,84760.0,84758.0,0.0642]
[1764608402737,2.0,84760.0,84758.0,0.0642]
[1764608402911,2.23596132,84760.0,84758.0,0.0642]
[1764608403109,0.23596132,84760.0,84758.0,0.0642]
[1764608403341,0.11104617,84760.0,84759.0,0.0642]
[1764608403514,2.0,84767.0,84759.0,0.07062]
[1764608403710,0.67464489,84768.0,84759.0,0.07062]
[1764608403711,0.323,84762.0,84760.0,0.0642]
[1764608403898,2.323,84761.0,84760.0,0.0642]
[1764608404094,0.01179871,84755.0,84746.0,0.01722905]
[1764608404321,0.23599655,84747.0,84746.0,0.01722905]
[1764608404523,0.23599655,84747.0,84745.0,0.09595]
[1764608404720,0.23599655,84747.0,84746.0,0.083]
[1764608404926,0.23599655,84747.0,84746.0,0.0642]
[1764608405134,0.323,84748.0,84746.0,0.17895]
[1764608405311,0.55899479,84748.0,84746.0,0.11475]
[1764608405515,0.23599933,84746.0,84745.0,0.002]
[1764608405723,0.23599933,84746.0,84733.0,0.14469]
[1764608405724,0.323,84739.0,84733.0,0.14469]
[1764608405941,0.55902249,84738.0,84737.0,0.0188]
[1764608406140,0.323,84738.0,84737.0,0.0188]
[1764608406565,0.323,84738.0,84736.0,0.068083]
[1764608406566,0.323,84737.0,84736.0,0.04874]
[1764608406764,0.01180163,84734.0,84725.0,0.04874]
[1764608406938,0.323,84732.0,84730.0,0.0188]
[1764608407341,0.323,84732.0,84731.0,0.0642]
[1764608407543,0.323,84732.0,84730.0,0.0188]
[1764608407804,0.323,84730.0,84725.0,0.01889673]
[1764608407987,0.052,84726.0,84725.0,9.673e-05]
[1764608408182,0.323,84726.0,84725.0,9.673e-05]
[1764608409233,0.16092822,84731.0,84725.0,9.673e-05]
[1764608409234,0.0406,84730.0,84725.0,9.673e-05]
[1764608409546,2.323,84727.0,84726.0,0.02967107]
[1764608409919,2.323,84727.0,84726.0,0.09387107]
[1764608410136,2.323,84727.0,84726.0,0.18982107]
[1764608410664,0.323,84727.0,84726.0,0.16015]
[1764608410787,0.11104617,84734.0,84733.0,0.23603307]
[1764608410788,0.323,84734.0,84733.0,0.23603307]
[1764608410986,0.323,84734.0,84733.0,0.44492307]
[1764608411246,0.67364489,84750.0,84744.0,0.01180024]
[1764608411485,0.67364489,84750.0,84741.0,0.01180066]
[1764608411486,0.323,84746.0,84742.0,0.01180052]
[1764608411690,0.323,84746.0,84743.0,0.0390652]
[1764608411846,0.11104617,84748.0,84745.0,0.0642]
[1764608412051,0.11104617,84748.0,84744.0,0.01180024]
[1764608412052,0.01179746,84764.0,84747.0,0.0642]
[1764608412259,0.01179746,84764.0,84746.0,0.0188]
[1764608412260,2.0,84754.0,84746.0,0.0188]
[1764608412436,0.33479982,84747.0,84744.0,0.001]
[1764608412790,0.01180024,84744.0,84737.0,0.04874]
[1764608412990,0.323,84744.0,84738.0,0.0188]
[1764608413118,0.23602161,84738.0,84737.0,0.04874]
[1764608413318,0.23602161,84738.0,84725.0,9.673e-05]
[1764608413319,0.01180205,84731.0,84725.0,9.673e-05]
[1764608413516,0.01180205,84731.0,84726.0,0.0188]
[1764608413517,0.323,84729.0,84726.0,0.0188]
[1764608413723,0.323,84726.0,84725.0,9.673e-05]
[1764608414796,0.3725,84726.0,84725.0,9.673e-05]
[1764608415012,2.0,84731.0,84728.0,0.01180247]
[1764608415290,0.67364489,84740.0,84737.0,0.24782524]
[1764608415468,0.03534,84745.0,84737.0,0.29656405]
[1764608415689,0.323,84741.0,84738.0,0.01180108]
[1764608415897,0.323,84741.0,84738.0,0.28098779]
[1764608416087,0.323,84741.0,84738.0,0.0331655]
[1764608416492,0.323,84741.0,84740.0,0.0642]
[1764608416717,0.323,84745.0,84738.0,0.0331655]
[1764608416845,0.0118008,84740.0,84737.0,0.04874]
[1764608417160,0.43404617,84741.0,84728.0,0.003]
[1764608417161,0.323,84735.0,84728.0,0.003]
[1764608417568,0.323,84735.0,84727.0,0.0188]
[1764608417767,0.323,84735.0,84727.0,0.11475]
[1764608418049,0.323,84730.0,84727.0,0.0188]
[1764608418491,0.323,84730.0,84728.0,0.001]
[1764608418698,0.323,84730.0,84727.0,0.0188]
[1764608418903,0.55905504,84726.0,84725.0,9.673e-05]
[1764608419116,0.323,84726.0,84725.0,9.673e-05]
[1764608419316,0.55905504,84726.0,84725.0,9.673e-05]
[1764608419930,0.323,84726.0,84725.0,9.673e-05]
[1764608420574,0.323,84726.0,84725.0,0.4253416]
[1764608420952,0.323,84726.0,84725.0,0.18928377]
[1764608421202,0.323,84726.0,84725.0,0.4253416]
[1764608421399,0.323,84726.0,84725.0,0.18928377]
[1764608421844,0.323,84726.0,84725.0,0.4273416]
[1764608422039,0.323,84726.0,84725.0,0.39830456]
[1764608422834,0.03176991,84753.0,84745.0,0.0118001]
[1764608423058,0.01851673,84755.0,84743.0,0.01180038]
[1764608423059,2.0,84754.0,84749.0,0.04504]
[1764608423189,2.0,84754.0,84749.0,0.05378403]
[1764608423380,2.0,84754.0,84750.0,0.24778761]
[1764608423577,0.323,84753.0,84751.0,0.23598458]
[1764608423774,0.323,84753.0,84750.0,0.24778761]
[1764608423775,0.323,84753.0,84749.0,0.05378403]
[1764608423999,0.01851673,84755.0,84751.0,0.01179927]
[1764608424208,2.0,84754.0,84752.0,0.05917729]
[1764608424405,0.01851673,84755.0,84739.0,0.04874]
[1764608424406,0.01179996,84746.0,84739.0,0.04874]
[1764608424606,0.323,84746.0,84742.0,0.0188]
[1764608424809,0.0118001,84745.0,84742.0,0.0188]
[1764608425011,0.37052993,84746.0,84742.0,0.0188]
[1764608425226,0.00121318,84743.0,84742.0,0.0188]
[1764608425626,0.00121318,84743.0,84742.0,0.47332772]
[1764608426536,0.00121318,84743.0,84742.0,0.48480776]
[1764608426921,0.00121318,84743.0,84742.0,0.47332772]
[1764608427127,0.00121318,84743.0,84742.0,0.48580776]
[1764608427329,0.00121318,84743.0,84742.0,0.48480776]
[1764608427736,0.00121318,84743.0,84742.0,0.48580776]
[1764608427931,0.00121318,84743.0,84742.0,0.48480776]
[1764608428311,0.00121318,84743.0,84742.0,0.48980776]
[1764608428521,0.00121318,84743.0,84742.0,0.24231725]
[1764608429172,0.00121318,84743.0,84742.0,0.22351725]
[1764608429376,0.00121318,84743.0,84742.0,0.08565]
[1764608430137,0.56071087,84743.0,84742.0,0.005]
[1764608430387,2.63516314,84743.0,84742.0,0.005]
[1764608430587,2.63516314,84743.0,84727.0,0.06676]
[1764608430588,0.55904947,84728.0,84727.0,0.06676]
[1764608430791,0.55904947,84728.0,84727.0,0.073436]
[1764608431289,0.323,84744.0,84728.0,0.01148004]
[1764608431461,0.323,84740.0,84737.0,0.01148004]
[1764608431820,0.323,84740.0,84739.0,0.06192]
[1764608432246,0.323,84740.0,84736.0,0.04796]
[1764608432247,0.55901604,84740.0,84736.0,0.04796]
[1764608432450,0.5590244,84737.0,84736.0,0.04796]
[1764608432612,0.323,84737.0,84736.0,0.04796]
[1764608432814,0.323,84737.0,84736.0,0.10988]
[1764608433041,0.323,84737.0,84736.0,0.04796]
[1764608433631,0.323,84737.0,84736.0,0.20168]
[1764608433800,0.323,84737.0,84736.0,0.23568841]
[1764608433941,0.323,84737.0,84736.0,0.46023556]
[1764608434878,0.00010656,84744.0,84741.0,0.24781361]
[1764608435083,0.00010656,84744.0,84743.0,0.06192]
[1764608435497,0.00010656,84744.0,84743.0,0.15372]
[1764608435811,0.00010656,84744.0,84743.0,0.24413609]
[1764608436172,0.00010656,84744.0,84743.0,0.25561613]
[1764608436682,0.00135251,84744.0,84743.0,0.31813912]
[1764608436886,0.00135251,84744.0,84743.0,0.24413609]
[1764608437080,0.00135251,84744.0,84743.0,0.26293609]
[1764608437279,0.00135251,84744.0,84743.0,0.27441613]
[1764608437398,0.00135251,84744.0,84743.0,0.26293609]
[1764608437825,0.00135251,84744.0,84743.0,0.28141613]
[1764608438037,0.00135251,84744.0,84743.0,0.27441613]
[1764608438278,0.00135251,84744.0,84743.0,0.33693912]
[1764608438479,0.0004,84770.0,84764.0,0.01179746]
[1764608438712,0.00049664,84770.0,84769.0,0.35729534]
[1764608438897,0.00049664,84770.0,84769.0,0.39726432]
[1764608439112,0.00049664,84770.0,84769.0,0.48906432]
[1764608440210,0.00049664,84770.0,84769.0,0.66263348]
[1764608440388,0.00049664,84770.0,84769.0,0.66563348]
[1764608440591,0.00049664,84770.0,84769.0,0.65415344]
[1764608440789,0.00049664,84770.0,84769.0,0.68143348]
[1764608441214,0.00049664,84770.0,84769.0,0.67395344]
[1764608441388,0.00049664,84770.0,84769.0,0.66995344]
[1764608441607,0.00049664,84770.0,84769.0,0.68143348]
[1764608441804,0.0004,84780.0,84779.0,0.24738751]
[1764608442150,0.0004,84780.0,84779.0,0.40795747]
[1764608442151,0.0004598,84780.0,84779.0,0.40795747]
[1764608442358,0.0004598,84780.0,84779.0,0.49975747]
[1764608442560,0.0004598,84780.0,84779.0,0.98108046]
[1764608442771,0.0004,84800.0,84779.0,0.98108046]
[1764608442772,0.0004,84800.0,84797.0,0.01179287]
[1764608442910,0.0004598,84800.0,84799.0,0.34573183]
[1764608443114,0.0004598,84800.0,84799.0,0.57155779]
[1764608443333,0.0004598,84800.0,84799.0,0.58303783]
[1764608443550,0.0004598,84800.0,84799.0,0.57155779]
[1764608443926,0.0004598,84800.0,84799.0,0.57555779]
[1764608444127,0.0004598,84800.0,84799.0,0.58703783]
[1764608444329,0.0004598,84800.0,84799.0,0.58303783]
[1764608444567,0.00229433,84800.0,84799.0,0.58703783]
[1764608444799,0.00229433,84800.0,84799.0,0.22910596]
[1764608444932,0.00229433,84800.0,84799.0,0.13268]
[1764608445129,0.32578433,84800.0,84799.0,0.004]
[1764608445417,0.32529433,84800.0,84799.0,0.004]
[1764608445801,0.323,84799.0,84792.0,0.01179356]
[1764608445995,0.323,84797.0,84793.0,0.03018482]
[1764608446182,0.01179314,84795.0,84788.0,0.0188]
[1764608446386,0.323,84794.0,84788.0,0.0188]
[1764608446587,0.323,84794.0,84789.0,0.01179398]
[1764608446783,0.01179412,84788.0,84779.0,0.04796]
[1764608446983,0.23589634,84783.0,84779.0,0.04796]
[1764608447245,0.23589634,84783.0,84764.0,0.01179746]
[1764608447246,0.01179593,84775.0,84772.0,0.0188]
[1764608447399,0.57071262,84776.0,84772.0,0.0188]
[1764608447602,0.323,84776.0,84772.0,0.0188]
[1764608448209,0.36095,84780.0,84772.0,0.06904784]
[1764608448408,0.323,84776.0,84772.0,0.06904784]
[1764608448614,0.33479579,84776.0,84772.0,0.0188]
[1764608448815,0.323,84776.0,84772.0,0.0188]
[1764608449523,0.323,84774.0,84772.0,0.0188]
[1764608449845,0.323,84773.0,84772.0,0.0198]
[1764608450289,0.323,84773.0,84772.0,0.08172]
[1764608450502,0.323,84773.0,84772.0,0.17252]
[1764608450698,0.323,84773.0,84772.0,0.08072]
[1764608451002,0.323,84773.0,84772.0,0.08172]
[1764608451637,0.323,84773.0,84772.0,0.0198]
[1764608451839,0.323,84773.0,84772.0,0.08172]
[1764608452172,0.323,84773.0,84772.0,0.18766772]
[1764608452331,0.323,84773.0,84772.0,0.17352]
[1764608453327,0.323,84773.0,84772.0,0.08172]
[1764608454036,0.323,84773.0,84772.0,0.17652]
[1764608455477,0.323,84773.0,84772.0,0.08172]
[1764608455949,0.323,84773.0,84772.0,0.198968]
[1764608456381,0.55892417,84773.0,84772.0,0.198968]
[1764608456591,0.323,84773.0,84772.0,0.199968]
[1764608457210,0.32395033,84773.0,84772.0,0.199968]
[1764608457415,0.32395033,84773.0,84772.0,0.086368]
[1764608457603,0.5598745,84773.0,84772.0,0.002]
[1764608457797,0.5598745,84773.0,84772.0,0.0208]
[1764608458052,0.5598745,84773.0,84772.0,0.002]
[1764608458831,0.6093745,84773.0,84772.0,0.002]
[1764608459126,0.32395033,84773.0,84772.0,0.15982]
[1764608459379,0.32395033,84773.0,84772.0,0.177682]
[1764608459558,0.32395033,84773.0,84772.0,0.176682]
[1764608459706,0.32395033,84773.0,84772.0,0.175682]
[1764608460606,0.32395033,84773.0,84772.0,0.176682]
[1764608461183,0.00095033,84773.0,84772.0,0.42408899]
[1764608461614,0.00095033,84773.0,84772.0,0.42508899]
[1764608461772,0.00095033,84773.0,84772.0,0.42408899]
[1764608462450,0.00095033,84773.0,84772.0,0.82408899]
[1764608462611,0.00095033,84773.0,84772.0,0.82608899]
[1764608462839,3.3e-07,84773.0,84772.0,0.88861198]
[1764608463003,0.0004,84800.0,84799.0,0.01148004]
[1764608463206,0.0004598,84800.0,84799.0,0.37063348]
[1764608463404,0.0004598,84800.0,84799.0,0.43315647]
[1764608463606,0.0004,84810.0,84808.0,0.2358268]
[1764608463878,0.0004,84830.0,84817.0,0.01179008]
[1764608464093,0.0004,84830.0,84827.0,0.01178869]
[1764608464331,0.0004,84830.0,84829.0,0.07450004]
[1764608464813,0.0004,84830.0,84829.0,0.16930004]
[1764608465258,0.0022663,84830.0,84829.0,0.16930004]
[1764608465441,0.0004,84840.0,84839.0,0.23574063]
[1764608465578,0.0004,84840.0,84839.0,0.24321161]
[1764608465781,0.0004,84840.0,84839.0,0.4862722]
[1764608465988,0.0004,84840.0,84839.0,0.49775224]
[1764608466545,0.0004,84840.0,84839.0,0.49875224]
[1764608466845,0.0004,84840.0,84839.0,0.50475224]
[1764608467058,0.0004,84840.0,84839.0,0.007]
[1764608467594,0.0004,84840.0,84839.0,0.006]
[1764608467793,0.0004,84840.0,84839.0,0.15782]
[1764608468050,0.0004,84840.0,84839.0,0.17010004]
[1764608468248,0.0004,84840.0,84839.0,0.06782]
[1764608468476,0.0004,84840.0,84839.0,0.10103413]
[1764608468685,0.0004,84840.0,84839.0,0.19583413]
[1764608468892,0.0004,84840.0,84839.0,0.19983413]
[1764608469103,0.0004,84840.0,84839.0,0.20831417]
[1764608469262,0.0004,84840.0,84839.0,0.20731417]
[1764608469464,0.0004,84840.0,84839.0,0.19783413]
[1764608469664,0.0004,84840.0,84839.0,0.19883413]
[1764608469889,0.0004,84840.0,84839.0,0.21031417]
[1764608470094,0.0004,84840.0,84839.0,0.27283716]
[1764608470302,0.0004,84840.0,84839.0,0.25935712]
[1764608470558,0.28537369,84882.0,84865.0,0.01178342]
[1764608470559,0.0004,84880.0,84865.0,0.01178342]
[1764608470728,0.0004,84880.0,84840.0,0.06252299]
[1764608470729,2.0,84868.0,84863.0,0.0188]
[1764608470930,0.24745267,84865.0,84861.0,0.0188]
[1764608471105,2.11104617,84866.0,84841.0,0.33053396]
[1764608471106,0.323,84863.0,84856.0,0.0188]
[1764608471361,0.23565436,84871.0,84856.0,0.0188]
[1764608471362,0.323,84870.0,84865.0,0.06302]
[1764608471499,0.323,84870.0,84866.0,0.006302]
[1764608471697,2.0,84879.0,84869.0,0.07450004]
[1764608471909,1.12947198,84880.0,84867.0,0.0188]
[1764608471910,0.0007898,84880.0,84879.0,0.111]
[1764608472113,0.0007898,84880.0,84879.0,0.16564215]
[1764608472362,0.0007898,84880.0,84879.0,0.2246]
[1764608472562,0.0007898,84880.0,84870.0,0.04764]
[1764608472763,0.323,84874.0,84871.0,0.01876]
[1764608473011,0.55865175,84871.0,84870.0,0.04764]
[1764608473184,0.323,84871.0,84870.0,0.04764]
[1764608473386,0.323,84871.0,84870.0,0.1179302]
[1764608473560,0.323,84871.0,84870.0,0.2127302]
[1764608474347,0.0007898,84880.0,84870.0,0.2137302]
[1764608474549,0.0007898,84880.0,84879.0,0.07450004]
[1764608475060,0.0007898,84880.0,84879.0,0.15782]
[1764608475259,0.0007898,84880.0,84879.0,0.22423466]
[1764608475460,0.0007898,84880.0,84870.0,0.1507102]
[1764608475461,0.01257113,84880.0,84870.0,0.1507102]
[1764608475700,0.01257113,84880.0,84871.0,0.01876]
[1764608475701,0.23564543,84874.0,84871.0,0.01876]
[1764608475878,0.323,84879.0,84871.0,0.01876]
[1764608476081,0.0007898,84880.0,84879.0,0.002]
[1764608476302,0.0007898,84880.0,84879.0,0.166322]
[1764608476530,0.0007898,84880.0,84879.0,0.164322]
[1764608476947,0.0007898,84880.0,84879.0,0.17580204]
[1764608477095,0.0007898,84880.0,84879.0,0.164322]
[1764608477303,0.0007898,84880.0,84879.0,0.39995154]
[1764608477530,0.0004,84920.0,84897.0,0.01177897]
[1764608477728,1.12868218,84910.0,84905.0,0.06302]
[1764608478064,1.12868218,84910.0,84898.0,0.03053884]
[1764608478065,2.01177731,84909.0,84899.0,0.0188]
[1764608478267,2.03715,84908.0,84900.0,0.00654]
[1764608478485,0.23559192,84893.0,84880.0,0.1414]
[1764608478690,0.01177953,84893.0,84882.0,0.0188]
[1764608478837,0.323,84889.0,84882.0,0.0188]
[1764608479047,0.323,84889.0,84883.0,0.10336838]
[1764608479242,1.12868218,84900.0,84892.0,0.06302]
[1764608479469,0.323,84899.0,84885.0,0.01178064]
[1764608479810,0.32311691,84899.0,84884.0,0.01178078]
[1764608479932,0.32311691,84899.0,84898.0,0.04798]
[1764608480536,0.32311691,84899.0,84898.0,0.14171282]
[1764608480871,0.00011691,84899.0,84898.0,0.24799286]
[1764608481076,0.00011691,84899.0,84898.0,0.14171282]
[1764608481244,0.01177897,84897.0,84891.0,0.04798]
[1764608481444,0.01177939,84894.0,84887.0,0.0188]
[1764608481643,0.01177939,84894.0,84880.0,0.0466]
[1764608481644,0.01177995,84890.0,84880.0,0.0466]
[1764608481870,0.01177995,84890.0,84885.0,0.001]
[1764608481871,0.323,84886.0,84885.0,0.001]
[1764608482082,0.323,84886.0,84880.0,0.0466]
[1764608482424,0.323,84886.0,84880.0,0.05314]
[1764608482800,0.323,84886.0,84865.0,0.23566691]
[1764608482801,0.24741286,84879.0,84865.0,0.23566691]
[1764608482947,0.24741286,84879.0,84862.0,0.01178383]
[1764608482948,1.45168218,84880.0,84868.0,0.0188]
[1764608483192,0.323,84878.0,84868.0,0.0188]
[1764608483394,0.323,84878.0,84871.0,0.03256716]
[1764608484462,0.33478161,84878.0,84871.0,0.03256716]
[1764608484629,0.01178203,84875.0,84870.0,0.04764]
[1764608484837,0.01178189,84876.0,84870.0,0.04764]
[1764608485214,0.01178175,84877.0,84870.0,0.04764]
[1764608485562,0.01178189,84876.0,84871.0,0.001]
[1764608485839,0.24741833,84877.0,84870.0,0.04764]
[1764608486060,0.24741833,84877.0,84871.0,0.00900064]
[1764608486265,0.03809,84879.0,84871.0,0.00900064]
[1764608486475,2.0,84878.0,84871.0,0.00900064]
[1764608486678,0.323,84877.0,84871.0,0.00900064]
[1764608487319,0.323,84887.0,84876.0,0.07349004]
[1764608487525,0.323,84883.0,84878.0,0.06201]
[1764608487945,0.23563326,84878.0,84871.0,0.00900064]
[1764608488153,0.33478092,84883.0,84870.0,0.04764]
[1764608488154,0.01178217,84874.0,84870.0,0.04764]
[1764608488355,0.33478175,84877.0,84868.0,0.0188]
[1764608488356,0.323,84869.0,84868.0,0.0188]
[1764608488977,0.323,84869.0,84868.0,0.08081]
[1764608489456,2.0,84887.0,84870.0,0.01178272]
[1764608489708,2.0,84887.0,84868.0,0.18064]
[1764608489709,0.323,84886.0,84878.0,0.06104]
[1764608489879,2.0,84885.0,84878.0,0.06104]
[1764608490096,0.23562954,84879.0,84878.0,0.06104]